[Event "44th Chess Olympiad Women 2022"]
[Site "Chennai"]
[Date "2022.07.29"]
[Round "1.50"]
[White "Rogule, Laura"]
[Black "Alazmi, Amani"]
[Result "1-0"]
[WhiteElo "2292"]
[BlackElo "1506"]
[Annotator "ChessBase"]
[PlyCount "81"]
[EventDate "2022.??.??"]
[TimeControl "60"]

1. c4 {[%emt 0:00:04]} e5 {[%emt 0:00:05]} 2. g3 {[%emt 0:00:18]} Nf6 {[%emt 0:
00:00]} 3. Bg2 {[%emt 0:00:18]} Bc5 {[%emt 0:00:09]} 4. e3 {[%emt 0:05:41]} Nc6
{[%emt 0:03:43]} 5. a3 {[%emt 0:06:51]} a5 {[%emt 0:02:13]} 6. Nc3 {[%emt 0:00:
00]} O-O {[%emt 0:00:59]} 7. Nge2 {[%emt 0:04:23]} Re8 {[%emt 0:02:52]} 8. O-O
{[%emt 0:00:45]} h6 {[%emt 0:00:45]} 9. d3 {[%emt 0:05:19]} d6 {[%emt 0:04:40]}
10. h3 {[%emt 0:04:12]} Bd7 {[%emt 0:00:25]} 11. Kh2 {[%emt 0:01:47]} Qc8 {
[%emt 0:04:16]} 12. b3 {[%emt 0:03:38]} Ne7 {[%emt 0:01:06]} 13. e4 {[%emt 0:
00:00]} c6 {[%emt 0:03:52]} 14. f4 {[%emt 0:05:44]} exf4 {[%emt 0:12:07]} 15.
Bxf4 {[%emt 0:04:00]} Ng6 {[%emt 0:01:21]} 16. Bxh6 {[%emt 0:10:56]} Ng4+ {
[%emt 0:02:24]} 17. hxg4 {[%emt 0:00:08]} gxh6 {[%emt 0:00:09]} 18. d4 {
[%emt 0:01:01]} Bb6 {[%emt 0:00:54]} 19. Qd2 {[%emt 0:06:27]} Kg7 {[%emt 0:00:
00]} 20. Rf5 {[%emt 0:06:48]} Bd8 {[%emt 0:06:10]} 21. Raf1 {[%emt 0:00:44]}
Bxf5 {[%emt 0:01:11]} 22. gxf5 {[%emt 0:00:18]} Bg5 {[%emt 0:01:38]} 23. Qd3 {
[%emt 0:01:43]} Nf8 {[%emt 0:05:50]} 24. Nf4 {[%emt 0:02:37]} f6 {[%emt 0:00:
00]} 25. Bh3 {[%emt 0:04:41]} Qd8 {[%emt 0:05:25]} 26. Ne6+ {[%emt 0:02:03]}
Nxe6 {[%emt 0:00:27]} 27. fxe6 {[%emt 0:00:02]} Re7 {[%emt 0:03:13]} 28. Ne2 {
[%emt 0:03:30]} Kh8 {[%emt 0:14:15]} 29. d5 {[%emt 0:02:52]} Qc7 {[%emt 0:00:
00]} 30. Nd4 {[%emt 0:01:22]} Rh7 {[%emt 0:04:31]} 31. Bf5 {[%emt 0:02:17]} Rg7
{[%emt 0:01:06]} 32. Bh3 {[%emt 0:00:47]} Rh7 {[%emt 0:00:26]} 33. Qc3 {
[%emt 0:01:04]} Rf8 {[%emt 0:03:25]} 34. Nf3 {[%emt 0:01:12]} Rg7 {[%emt 0:00:
00]} 35. Nd4 {[%emt 0:00:53]} Rh7 {[%emt 0:01:03]} 36. Kg2 {[%emt 0:00:32]} Rg8
{[%emt 0:00:51]} 37. Nf3 {[%emt 0:00:32]} Rhg7 {[%emt 0:01:02]} 38. Nxg5 {
[%emt 0:00:27]} fxg5 {[%emt 0:01:17]} 39. Rf6 {[%emt 0:00:31]} Re8 {[%emt 0:00:
00]} 40. Rf7 {[%emt 0:00:23]} Kg8 {[%emt 0:00:37]} 41. Qxg7# {[%emt 0:30:05]}
1-0

[Event "44th Chess Olympiad Women 2022"]
[Site "Chennai"]
[Date "2022.07.29"]
[Round "1.50"]
[White "Ter-Avetisjana, Agnesa Stepania"]
[Black "Alazmi, Aeshah"]
[Result "1-0"]
[WhiteElo "1962"]
[BlackElo "1256"]
[Annotator "NA RC"]
[PlyCount "95"]
[EventDate "2022.??.??"]
[TimeControl "60"]

1. e4 e5 2. Nf3 Nc6 3. Bb5 d6 4. d4 Bd7 5. O-O Nxd4 6. Nxd4 exd4 7. Bxd7+ Qxd7
8. Qxd4 c5 9. Qd1 O-O-O 10. c4 Be7 11. Nc3 f5 12. exf5 Qxf5 13. Nd5 Bg5 14.
Bxg5 Qxg5 15. b4 Ne7 16. f4 Qh6 17. Nxe7+ Kb8 18. bxc5 dxc5 19. Nd5 Rhf8 20.
Rb1 Rxf4 21. Rxf4 Qxf4 22. Nxf4 Rxd1+ 23. Rxd1 a6 24. Rd7 g5 25. Ne6 h6 26.
Nxc5 Kc8 27. Rxb7 g4 28. Rh7 g3 29. Nxa6 gxh2+ 30. Kh1 h5 31. c5 h4 32. c6 h3
33. g4 Kd8 34. g5 Kc8 35. g6 Kd8 36. Nc5 Kc8 37. a4 Kd8 38. a5 Kc8 39. a6 Kd8
40. a7 Kc8 41. a8=N Kd8 42. Nb6 Ke8 43. c7 Kf8 44. c8=B Kg8 45. Be6+ Kf8 46.
Nbd7+ Ke8 47. Nf6+ Kd8 48. Nb7# 1-0

[Event "44th Chess Olympiad Women 2022"]
[Site "Chennai"]
[Date "2022.07.29"]
[Round "1.51"]
[White "San Diego, Marie Antoinette"]
[Black "O`Gorman, Alice"]
[Result "0-1"]
[WhiteElo "2101"]
[BlackElo "2043"]
[Annotator "NA RC"]
[PlyCount "48"]
[EventDate "2022.??.??"]
[TimeControl "60"]

1. e4 {[%emt 0:00:06]} e5 {[%emt 0:00:06]} 2. Nf3 {[%emt 0:00:07]} Nf6 {
[%emt 0:00:06]} 3. Nc3 {[%emt 0:00:19]} Nc6 {[%emt 0:00:08]} 4. Bc4 {[%emt 0:
00:00]} Nxe4 {[%emt 0:00:14]} 5. Nxe4 {[%emt 0:00:21]} d5 {[%emt 0:00:04]} 6.
d3 {[%emt 0:00:57]} dxc4 {[%emt 0:00:43]} 7. O-O {[%emt 0:00:33]} cxd3 {
[%emt 0:00:45]} 8. cxd3 {[%emt 0:00:49]} Bg4 {[%emt 0:01:24]} 9. Re1 {[%emt 0:
00:00]} Be7 {[%emt 0:02:37]} 10. Qb3 {[%emt 0:01:53]} Bxf3 {[%emt 0:01:05]} 11.
gxf3 {[%emt 0:00:28]} Nd4 {[%emt 0:00:10]} 12. Qa4+ {[%emt 0:01:38]} c6 {
[%emt 0:01:29]} 13. Re3 {[%emt 0:00:52]} f5 {[%emt 0:02:23]} 14. Nd2 {[%emt 0:
00:00]} O-O {[%emt 0:01:34]} 15. Rxe5 {[%emt 0:01:37]} Bg5 {[%emt 0:00:31]} 16.
Kf1 {[%emt 0:02:04]} Bxd2 {[%emt 0:00:34]} 17. Bxd2 {[%emt 0:00:31]} Nxf3 {
[%emt 0:00:25]} 18. Qf4 {[%emt 0:02:10]} Nxe5 {[%emt 0:00:54]} 19. Qxe5 {
[%emt 0:00:20]} Qxd3+ {[%emt 0:00:07]} 20. Qe2 {[%emt 0:00:31]} Qh3+ {[%emt 0:
00:00]} 21. Kg1 {[%emt 0:00:17]} Rf6 {[%emt 0:00:15]} 22. Kh1 {[%emt 0:00:51]}
Rd8 {[%emt 0:02:07]} 23. Bg5 {[%emt 0:01:10]} Rg6 {[%emt 0:03:39]} 24. Bxd8 {
[%emt 0:00:13]} Qg2# {[%emt 0:00:10]} 0-1

[Event "44th Chess Olympiad Women 2022"]
[Site "Chennai"]
[Date "2022.07.29"]
[Round "1.52"]
[White "Foudzi, Siti Zulaikha"]
[Black "Nosimilo, Mkhonto"]
[Result "1-0"]
[WhiteElo "2188"]
[BlackElo "1313"]
[Annotator "ChessBase"]
[PlyCount "74"]
[EventDate "2022.??.??"]
[TimeControl "60"]

1. e4 {[%emt 0:00:04]} e5 {[%emt 0:00:03]} 2. Nf3 {[%emt 0:00:08]} Nc6 {
[%emt 0:00:07]} 3. Bb5 {[%emt 0:00:06]} d6 {[%emt 0:00:35]} 4. h3 {[%emt 0:00:
00]} Bd7 {[%emt 0:00:17]} 5. c3 {[%emt 0:00:29]} Nf6 {[%emt 0:00:21]} 6. Qe2 {
[%emt 0:00:20]} Be7 {[%emt 0:00:48]} 7. O-O {[%emt 0:00:33]} O-O {[%emt 0:00:
00]} 8. d4 {[%emt 0:01:27]} a6 {[%emt 0:02:09]} 9. Bc4 {[%emt 0:00:59]} Qc8 {
[%emt 0:04:18]} 10. Kh2 {[%emt 0:06:35]} Bd8 {[%emt 0:10:24]} 11. Re1 {[%emt 0:
00:00]} Re8 {[%emt 0:00:32]} 12. Nbd2 {[%emt 0:01:56]} b5 {[%emt 0:02:29]} 13.
Bb3 {[%emt 0:00:07]} Nh5 {[%emt 0:04:06]} 14. Nf1 {[%emt 0:16:02]} Na5 {
[%emt 0:07:33]} 15. Nxe5 {[%emt 0:06:48]} dxe5 {[%emt 0:05:51]} 16. Qxh5 {
[%emt 0:00:08]} Nxb3 {[%emt 0:00:04]} 17. axb3 {[%emt 0:00:06]} Bf6 {[%emt 0:
00:00]} 18. d5 {[%emt 0:07:32]} g6 {[%emt 0:09:43]} 19. Qe2 {[%emt 0:00:09]} c6
{[%emt 0:09:16]} 20. c4 {[%emt 0:01:10]} cxd5 {[%emt 0:03:14]} 21. cxd5 {
[%emt 0:00:08]} Qc5 {[%emt 0:01:41]} 22. Be3 {[%emt 0:02:33]} Qb4 {[%emt 0:00:
00]} 23. Qd3 {[%emt 0:00:11]} Rec8 {[%emt 0:03:05]} 24. Rec1 {[%emt 0:02:51]}
Rxc1 {[%emt 0:06:28]} 25. Rxc1 {[%emt 0:00:11]} Rc8 {[%emt 0:01:21]} 26. Ra1 {
[%emt 0:02:42]} Ra8 {[%emt 0:02:45]} 27. Nd2 {[%emt 0:03:16]} Qe7 {[%emt 0:00:
00]} 28. d6 {[%emt 0:04:15]} Qf8 {[%emt 0:04:23]} 29. b4 {[%emt 0:00:17]} Kg7 {
[%emt 0:02:19]} 30. Nb3 {[%emt 0:00:56]} Qe8 {[%emt 0:03:47]} 31. Nc5 {[%emt 0:
00:00]} Qc8 {[%emt 0:01:37]} 32. Rc1 {[%emt 0:02:39]} Qd8 {[%emt 0:01:32]} 33.
Qd5 {[%emt 0:02:41]} Rc8 {[%emt 0:05:15]} 34. Nxd7 {[%emt 0:02:47]} Qxd7 {
[%emt 0:00:12]} 35. Rxc8 {[%emt 0:00:05]} Qxc8 {[%emt 0:00:07]} 36. d7 {
[%emt 0:00:07]} Qc7 {[%emt 0:01:11]} 37. Bc5 {[%emt 0:00:20]} Kh6 {[%emt 0:00:
00]} 1-0

[Event "44th Chess Olympiad Women 2022"]
[Site "Chennai"]
[Date "2022.07.29"]
[Round "1.52"]
[White "Nomcebo, Sibisi"]
[Black "Azhar, Puteri Munajjah Az-"]
[Result "0-1"]
[WhiteElo "1225"]
[BlackElo "2018"]
[Annotator "NA"]
[PlyCount "20"]
[EventDate "2022.??.??"]
[TimeControl "60"]

1. d4 {[%emt 0:00:09]} Nf6 {[%emt 0:00:12]} 2. Nf3 {[%emt 0:00:21]} d6 {
[%emt 0:00:23]} 3. g3 {[%emt 0:00:24]} g6 {[%emt 0:00:09]} 4. Bg2 {[%emt 0:00:
00]} Bg7 {[%emt 0:00:05]} 5. O-O {[%emt 0:00:22]} O-O {[%emt 0:00:09]} 6. b3 {
[%emt 0:00:15]} c6 {[%emt 0:00:27]} 7. Bb2 {[%emt 0:00:35]} Qc7 {[%emt 0:01:06]
} 8. c4 {[%emt 0:01:02]} Nbd7 {[%emt 0:00:35]} 9. Nbd2 {[%emt 0:01:01]} Re8 {
[%emt 0:04:24]} 10. Rc1 {[%emt 0:00:32]} e5 {[%emt 0:01:43]} 0-1

[Event "44th Chess Olympiad Women 2022"]
[Site "Chennai"]
[Date "2022.07.29"]
[Round "1.53"]
[White "Acham, Meritza"]
[Black "Petricenco, Ana"]
[Result "0-1"]
[WhiteElo "1397"]
[BlackElo "1912"]
[Annotator "NA RC"]
[PlyCount "88"]
[EventDate "2022.??.??"]
[TimeControl "60"]

1. d4 {[%emt 0:00:05]} d5 {[%emt 0:00:08]} 2. Bf4 {[%emt 0:00:12]} c5 {[%emt 0:
00:00]} 3. e3 {[%emt 0:00:32]} Nc6 {[%emt 0:00:50]} 4. Nf3 {[%emt 0:00:51]} Nf6
{[%emt 0:01:14]} 5. c3 {[%emt 0:02:27]} Qb6 {[%emt 0:02:47]} 6. Qc1 {[%emt 0:
00:00]} Bf5 {[%emt 0:01:33]} 7. Be2 {[%emt 0:02:40]} e6 {[%emt 0:01:07]} 8. Nh4
{[%emt 0:02:46]} Bg6 {[%emt 0:02:37]} 9. Nxg6 {[%emt 0:00:50]} hxg6 {[%emt 0:
00:00]} 10. O-O {[%emt 0:06:00]} Rc8 {[%emt 0:11:14]} 11. Nd2 {[%emt 0:07:07]}
Be7 {[%emt 0:07:01]} 12. Rb1 {[%emt 0:30:49]} Qd8 {[%emt 0:15:34]} 13. Qc2 {
[%emt 0:00:14]} cxd4 {[%emt 0:02:49]} 14. exd4 {[%emt 0:03:48]} Nxd4 {[%emt 0:
00:00]} 15. Qa4+ {[%emt 0:00:23]} Nc6 {[%emt 0:00:08]} 16. Bb5 {[%emt 0:00:41]}
a6 {[%emt 0:03:25]} 17. Bxc6+ {[%emt 0:03:52]} Rxc6 {[%emt 0:00:05]} 18. Nf3 {
[%emt 0:05:03]} b5 {[%emt 0:04:39]} 19. Qc2 {[%emt 0:03:00]} Rc4 {[%emt 0:00:
00]} 20. Be3 {[%emt 0:07:01]} Bd6 {[%emt 0:04:23]} 21. Bd4 {[%emt 0:03:00]} Qb8
{[%emt 0:05:32]} 22. g3 {[%emt 0:02:05]} O-O {[%emt 0:08:04]} 23. Rbe1 {
[%emt 0:03:01]} Ne4 {[%emt 0:04:58]} 24. Nh4 {[%emt 0:02:50]} Ng5 {[%emt 0:00:
00]} 25. f4 {[%emt 0:02:26]} Ne4 {[%emt 0:02:33]} 26. Nf3 {[%emt 0:02:51]} Rfc8
{[%emt 0:02:11]} 27. Nd2 {[%emt 0:02:08]} Rxd4 {[%emt 0:01:11]} 28. Nxe4 {
[%emt 0:02:48]} Rxe4 {[%emt 0:00:10]} 29. Rxe4 {[%emt 0:00:05]} dxe4 {[%emt 0:
00:00]} 30. Qxe4 {[%emt 0:00:07]} Qb6+ {[%emt 0:00:24]} 31. Kg2 {[%emt 0:00:32]
} Qc6 {[%emt 0:00:16]} 32. Re1 {[%emt 0:00:32]} Qxe4+ {[%emt 0:01:22]} 33. Rxe4
{[%emt 0:00:15]} Kf8 {[%emt 0:00:04]} 34. Kf3 {[%emt 0:00:31]} Ke7 {[%emt 0:00:
00]} 35. a4 {[%emt 0:01:23]} Rc4 {[%emt 0:01:14]} 36. axb5 {[%emt 0:00:28]}
axb5 {[%emt 0:00:04]} 37. Ke3 {[%emt 0:00:33]} Bc5+ {[%emt 0:00:31]} 38. Kd3 {
[%emt 0:00:31]} Rxe4 {[%emt 0:00:09]} 39. Kxe4 {[%emt 0:00:14]} Kd6 {[%emt 0:
00:00]} 40. g4 {[%emt 0:01:50]} f5+ {[%emt 0:00:27]} 41. Kf3 {[%emt 0:30:35]}
Kd5 {[%emt 0:30:16]} 42. b3 {[%emt 0:00:23]} Bb6 {[%emt 0:00:17]} 43. h3 {
[%emt 0:00:49]} Ba5 {[%emt 0:00:07]} 44. b4 {[%emt 0:00:43]} Bc7 {[%emt 0:00:
00]} 0-1

[Event "44th Chess Olympiad Women 2022"]
[Site "Chennai"]
[Date "2022.07.29"]
[Round "1.54"]
[White "Avila Fraire, Ameyalli"]
[Black "Johnson, Nellisha"]
[Result "1-0"]
[WhiteElo "1907"]
[BlackElo "1093"]
[Annotator "NA"]
[PlyCount "75"]
[EventDate "2022.??.??"]
[TimeControl "60"]

1. e4 {[%emt 0:00:04]} e5 {[%emt 0:00:08]} 2. Nf3 {[%emt 0:00:09]} Nc6 {
[%emt 0:00:13]} 3. d4 {[%emt 0:00:08]} exd4 {[%emt 0:00:38]} 4. Nxd4 {[%emt 0:
00:00]} Nxd4 {[%emt 0:00:49]} 5. Qxd4 {[%emt 0:00:12]} d6 {[%emt 0:00:22]} 6.
Nc3 {[%emt 0:00:39]} Nf6 {[%emt 0:01:52]} 7. Bg5 {[%emt 0:01:10]} Be7 {[%emt 0:
00:00]} 8. O-O-O {[%emt 0:01:28]} O-O {[%emt 0:00:50]} 9. h4 {[%emt 0:02:46]}
h5 {[%emt 0:02:44]} 10. Be2 {[%emt 0:02:17]} Bg4 {[%emt 0:02:35]} 11. f3 {
[%emt 0:03:36]} Be6 {[%emt 0:00:49]} 12. g4 {[%emt 0:08:40]} c5 {[%emt 0:10:44]
} 13. Qe3 {[%emt 0:08:54]} a6 {[%emt 0:09:11]} 14. gxh5 {[%emt 0:13:53]} Nxh5 {
[%emt 0:02:29]} 15. Rdg1 {[%emt 0:10:51]} f6 {[%emt 0:02:41]} 16. Bh6 {[%emt 0:
00:00]} Rf7 {[%emt 0:03:27]} 17. f4 {[%emt 0:00:21]} Nxf4 {[%emt 0:04:24]} 18.
Qxf4 {[%emt 0:00:27]} Kh7 {[%emt 0:02:22]} 19. Bh5 {[%emt 0:02:27]} gxh6 {
[%emt 0:03:27]} 20. Bg6+ {[%emt 0:00:13]} Kg8 {[%emt 0:01:38]} 21. Bf5+ {
[%emt 0:00:32]} Kf8 {[%emt 0:02:50]} 22. Bxe6 {[%emt 0:00:52]} Ke8 {[%emt 0:00:
00]} 23. Qxh6 {[%emt 0:03:39]} Bf8 {[%emt 0:01:19]} 24. Qh5 {[%emt 0:02:22]}
Qe7 {[%emt 0:01:57]} 25. Nd5 {[%emt 0:00:42]} Bh6+ {[%emt 0:11:00]} 26. Kb1 {
[%emt 0:01:22]} Qf8 {[%emt 0:03:59]} 27. Rg8 {[%emt 0:00:46]} Qxg8 {[%emt 0:00:
00]} 28. Nxf6+ {[%emt 0:00:12]} Ke7 {[%emt 0:01:25]} 29. Nxg8+ {[%emt 0:00:09]}
Kxe6 {[%emt 0:00:41]} 30. Qd5+ {[%emt 0:02:42]} Kd7 {[%emt 0:01:48]} 31. Qxf7+
{[%emt 0:00:07]} Kc6 {[%emt 0:00:21]} 32. Qd5+ {[%emt 0:00:42]} Kc7 {[%emt 0:
00:00]} 33. Rf1 {[%emt 0:00:12]} Rf8 {[%emt 0:04:07]} 34. Rxf8 {[%emt 0:00:46]}
Bxf8 {[%emt 0:00:13]} 35. Nf6 {[%emt 0:01:11]} Be7 {[%emt 0:00:43]} 36. Qf7 {
[%emt 0:00:13]} Kd8 {[%emt 0:01:02]} 37. Qe8+ {[%emt 0:00:10]} Kc7 {[%emt 0:00:
00]} 38. Nd5# {[%emt 0:00:07]} 1-0

[Event "44th Chess Olympiad Women 2022"]
[Site "Chennai"]
[Date "2022.07.29"]
[Round "1.54"]
[White "Callender, Jessica"]
[Black "Hernandez Diaz, Paula Sofia"]
[Result "0-1"]
[WhiteElo "1295"]
[BlackElo "1751"]
[Annotator "NA"]
[PlyCount "62"]
[EventDate "2022.??.??"]
[TimeControl "60"]

1. e4 {[%emt 0:00:02]} c5 {[%emt 0:00:09]} 2. c4 {[%emt 0:00:13]} Nc6 {[%emt 0:
00:00]} 3. Nc3 {[%emt 0:00:27]} e5 {[%emt 0:00:29]} 4. d3 {[%emt 0:01:23]} g6 {
[%emt 0:01:33]} 5. Nge2 {[%emt 0:04:05]} Bg7 {[%emt 0:01:57]} 6. Bd2 {[%emt 0:
00:00]} Nge7 {[%emt 0:02:35]} 7. a3 {[%emt 0:02:14]} a5 {[%emt 0:06:07]} 8. g3
{[%emt 0:10:31]} O-O {[%emt 0:05:36]} 9. Bg2 {[%emt 0:02:39]} d6 {[%emt 0:00:
00]} 10. h3 {[%emt 0:01:02]} Rb8 {[%emt 0:04:12]} 11. Rb1 {[%emt 0:00:30]} Be6
{[%emt 0:00:31]} 12. f4 {[%emt 0:11:33]} f5 {[%emt 0:02:17]} 13. Nd5 {[%emt 0:
00:00]} b5 {[%emt 0:04:15]} 14. Qc2 {[%emt 0:06:05]} fxe4 {[%emt 0:14:53]} 15.
Bxe4 {[%emt 0:01:08]} Kh8 {[%emt 0:14:12]} 16. O-O {[%emt 0:03:34]} Bxh3 {
[%emt 0:02:39]} 17. Rf2 {[%emt 0:06:03]} Nf5 {[%emt 0:06:09]} 18. Bxf5 {
[%emt 0:03:56]} Bxf5 {[%emt 0:01:46]} 19. Rh2 {[%emt 0:09:12]} exf4 {[%emt 0:
00:00]} 20. Bxf4 {[%emt 0:04:39]} Ne5 {[%emt 0:01:04]} 21. Bxe5 {[%emt 0:01:31]
} Bxe5 {[%emt 0:01:21]} 22. Kg2 {[%emt 0:11:46]} Qg5 {[%emt 0:05:43]} 23. Qc1 {
[%emt 0:04:19]} Qxc1 {[%emt 0:00:34]} 24. Rxc1 {[%emt 0:00:02]} Bxd3 {[%emt 0:
00:00]} 25. Nef4 {[%emt 0:02:03]} bxc4 {[%emt 0:00:30]} 26. Nxg6+ {[%emt 0:00:
00]} Bxg6 {[%emt 0:00:07]} 27. Nf4 {[%emt 0:03:57]} Rxb2+ {[%emt 0:00:12]} 28.
Kg1 {[%emt 0:00:19]} Bd4+ {[%emt 0:00:34]} 29. Kh1 {[%emt 0:00:49]} Be4+ {
[%emt 0:00:06]} 30. Ng2 {[%emt 0:00:16]} Rff2 {[%emt 0:00:12]} 31. Re1 {
[%emt 0:01:05]} Bxg2+ {[%emt 0:00:34]} 0-1

[Event "44th Chess Olympiad Women 2022"]
[Site "Chennai"]
[Date "2022.07.29"]
[Round "1.54"]
[White "Guerrero Rodriguez, Alejandra"]
[Black "Lam, Pooja"]
[Result "1-0"]
[WhiteElo "2006"]
[BlackElo "1163"]
[Annotator "NA RC"]
[PlyCount "75"]
[EventDate "2022.??.??"]
[TimeControl "60"]

1. e4 {[%emt 0:00:15]} c6 {[%emt 0:00:18]} 2. d4 {[%emt 0:00:42]} d5 {[%emt 0:
00:00]} 3. exd5 {[%emt 0:00:46]} cxd5 {[%emt 0:00:10]} 4. c4 {[%emt 0:00:36]}
Nf6 {[%emt 0:03:27]} 5. Nc3 {[%emt 0:00:34]} dxc4 {[%emt 0:02:37]} 6. Bxc4 {
[%emt 0:00:56]} a6 {[%emt 0:02:15]} 7. Nf3 {[%emt 0:01:16]} Nbd7 {[%emt 0:00:
00]} 8. O-O {[%emt 0:04:24]} Nb6 {[%emt 0:00:51]} 9. Bb3 {[%emt 0:02:43]} e6 {
[%emt 0:04:53]} 10. Bf4 {[%emt 0:05:50]} Bd6 {[%emt 0:03:30]} 11. Be5 {[%emt 0:
00:00]} O-O {[%emt 0:04:27]} 12. Qe2 {[%emt 0:04:57]} Qe7 {[%emt 0:02:42]} 13.
Bc2 {[%emt 0:06:38]} Nfd5 {[%emt 0:04:47]} 14. Ne4 {[%emt 0:02:47]} Bxe5 {
[%emt 0:02:27]} 15. dxe5 {[%emt 0:00:26]} Bd7 {[%emt 0:03:33]} 16. Qd3 {
[%emt 0:02:03]} g6 {[%emt 0:06:40]} 17. Qd4 {[%emt 0:08:11]} Qd8 {[%emt 0:00:
00]} 18. Rfd1 {[%emt 0:13:39]} Rc8 {[%emt 0:04:25]} 19. Bb3 {[%emt 0:01:09]}
Ba4 {[%emt 0:05:34]} 20. Bxa4 {[%emt 0:03:52]} Rc4 {[%emt 0:01:38]} 21. Nf6+ {
[%emt 0:03:18]} Kg7 {[%emt 0:00:38]} 22. Qd2 {[%emt 0:04:41]} Rxa4 {[%emt 0:00:
00]} 23. b3 {[%emt 0:01:51]} Rb4 {[%emt 0:00:55]} 24. Nd4 {[%emt 0:01:33]} Nd7
{[%emt 0:02:15]} 25. Nxd5 {[%emt 0:00:35]} Rxd4 {[%emt 0:01:09]} 26. Qxd4 {
[%emt 0:00:09]} exd5 {[%emt 0:00:28]} 27. Qxd5 {[%emt 0:00:10]} Nb6 {[%emt 0:
00:00]} 28. Qxd8 {[%emt 0:00:08]} Rxd8 {[%emt 0:00:13]} 29. Rxd8 {[%emt 0:00:
00]} h6 {[%emt 0:01:14]} 30. Rad1 {[%emt 0:00:14]} h5 {[%emt 0:00:19]} 31. R1d6
{[%emt 0:00:06]} Nc4 {[%emt 0:00:32]} 32. bxc4 {[%emt 0:00:08]} h4 {[%emt 0:00:
00]} 33. R6d7 {[%emt 0:00:21]} h3 {[%emt 0:00:25]} 34. e6 {[%emt 0:00:15]} g5 {
[%emt 0:00:27]} 35. exf7 {[%emt 0:00:11]} hxg2 {[%emt 0:00:16]} 36. f8=Q+ {
[%emt 0:00:09]} Kg6 {[%emt 0:00:11]} 37. Qf7+ {[%emt 0:00:14]} Kh6 {[%emt 0:00:
00]} 38. Rh8# {[%emt 0:00:49]} 1-0

[Event "44th Chess Olympiad Women 2022"]
[Site "Chennai"]
[Date "2022.07.29"]
[Round "1.54"]
[White "Shariff, Sasha Christina"]
[Black "Guillen Cristobal, Sandra N"]
[Result "0-1"]
[WhiteElo "1183"]
[BlackElo "1962"]
[Annotator "NA RC"]
[PlyCount "86"]
[EventDate "2022.??.??"]
[TimeControl "60"]

1. e4 {[%emt 0:00:03]} c5 {[%emt 0:00:08]} 2. Nf3 {[%emt 0:00:09]} Nc6 {
[%emt 0:00:20]} 3. d4 {[%emt 0:00:13]} cxd4 {[%emt 0:00:09]} 4. Nxd4 {[%emt 0:
00:00]} g6 {[%emt 0:00:22]} 5. c4 {[%emt 0:00:10]} Bg7 {[%emt 0:00:10]} 6. Be3
{[%emt 0:00:15]} Nf6 {[%emt 0:00:11]} 7. Nc3 {[%emt 0:00:19]} d6 {[%emt 0:00:
00]} 8. Be2 {[%emt 0:00:29]} O-O {[%emt 0:01:23]} 9. O-O {[%emt 0:01:52]} Bd7 {
[%emt 0:00:11]} 10. b3 {[%emt 0:06:22]} a5 {[%emt 0:00:38]} 11. Nd5 {[%emt 0:
00:00]} Nxe4 {[%emt 0:00:24]} 12. f3 {[%emt 0:00:59]} Nf6 {[%emt 0:00:14]} 13.
Nxf6+ {[%emt 0:01:32]} Bxf6 {[%emt 0:00:10]} 14. Rb1 {[%emt 0:07:57]} Qb6 {
[%emt 0:05:19]} 15. Nc2 {[%emt 0:04:35]} Qc7 {[%emt 0:00:14]} 16. Qd2 {[%emt 0:
00:00]} Rfc8 {[%emt 0:02:41]} 17. Bg5 {[%emt 0:02:23]} Bh8 {[%emt 0:02:20]} 18.
h4 {[%emt 0:16:05]} Bf5 {[%emt 0:02:20]} 19. Bd3 {[%emt 0:01:41]} Bxd3 {
[%emt 0:01:58]} 20. Qxd3 {[%emt 0:01:31]} Ne5 {[%emt 0:01:38]} 21. Qe4 {
[%emt 0:02:26]} e6 {[%emt 0:02:22]} 22. Nd4 {[%emt 0:11:29]} Qc5 {[%emt 0:00:
00]} 23. Be3 {[%emt 0:09:25]} f5 {[%emt 0:07:08]} 24. Qxb7 {[%emt 0:04:20]}
Nxf3+ {[%emt 0:01:21]} 25. Qxf3 {[%emt 0:02:17]} Bxd4 {[%emt 0:00:02]} 26. Bxd4
{[%emt 0:00:40]} Qxd4+ {[%emt 0:00:09]} 27. Qf2 {[%emt 0:00:14]} Qxf2+ {
[%emt 0:04:16]} 28. Rxf2 {[%emt 0:00:08]} Kf7 {[%emt 0:00:25]} 29. Rd2 {
[%emt 0:00:36]} Ra6 {[%emt 0:00:52]} 30. Rc1 {[%emt 0:02:54]} Ke7 {[%emt 0:00:
00]} 31. Kf2 {[%emt 0:00:49]} Rb6 {[%emt 0:00:15]} 32. Rb2 {[%emt 0:01:45]}
Rbc6 {[%emt 0:01:41]} 33. Rbc2 {[%emt 0:01:19]} Rb8 {[%emt 0:00:53]} 34. Rb1 {
[%emt 0:03:12]} d5 {[%emt 0:00:16]} 35. c5 {[%emt 0:00:14]} Rb5 {[%emt 0:00:35]
} 36. Rbc1 {[%emt 0:00:42]} e5 {[%emt 0:00:23]} 37. g3 {[%emt 0:00:48]} Ke6 {
[%emt 0:00:07]} 38. Kf3 {[%emt 0:00:16]} d4 {[%emt 0:00:22]} 39. Rc4 {[%emt 0:
00:00]} Kd5 {[%emt 0:00:18]} 40. R4c2 {[%emt 0:01:08]} Rbxc5 {[%emt 0:00:40]}
41. Rxc5+ {[%emt 0:30:29]} Rxc5 {[%emt 0:30:06]} 42. Rxc5+ {[%emt 0:00:24]}
Kxc5 {[%emt 0:00:07]} 43. a3 {[%emt 0:00:31]} h5 {[%emt 0:01:27]} 0-1